Workbook

Sheet E1
A1: P | B1: 100 | C1: kPa | F1: Vlow | G1: 20 | M1: Equation
A2: T | B2: 373 | C2: K | F2: Vhigh | G2: 50
A3: A | B3: 175.188
A4: B | B4: 0.0264
F5: Bisection Method | M5: Function
A6: V | B6: f(V) | F6: NOI | G6: V1 | H6: f(V1) | I6: Vmid | J6: f(Vmid) | K6: V2
A7: 20 | B7: =(8.314*T)/(A7-B)-A/((A7*(A7+B)+B*(A7-B)))-P -> 54.82422702 | F7: 1 | G7: 20 | H7: =(8.314*T)/(G7-B)-A/((G7*(G7+B)+B*(G7-B)))-P -> 54.82422702 | I7: =(G7+K7)/2 -> 35 | J7: =(8.314*T)/(I7-B)-A/((I7*(I7+B)+B*(I7-B)))-P -> -11.47242677 | K7: 50
A8: 25 | B8: 23.8962995 | F8: 2 | G8: =IF(H7*J7<0,G7,I7) -> 20 | H8: 54.82422702 | I8: 27.5 | J8: 12.64522426 | K8: =IF(J7*H7<0,I7,K7) -> 35
A9: 30 | B9: 3.267468204 | F9: 3 | G9: 27.5 | H9: 12.64522426 | I9: 31.25 | J9: -0.8592806743 | K9: 35
A10: 35 | B10: -11.47242677 | F10: 4 | G10: 27.5 | H10: 12.64522426 | I10: 29.375 | J10: 5.462413849 | K10: 31.25
A11: 40 | B11: -22.5300959 | F11: 5 | G11: 29.375 | H11: 5.462413849 | I11: 30.3125 | J11: 2.203904489 | K11: 31.25
A12: 45 | B12: -31.13213584 | F12: 6 | G12: 30.3125 | H12: 2.203904489 | I12: 30.78125 | J12: 0.6490107369 | K12: 31.25
A13: 50 | B13: -38.01479615 | F13: 7 | G13: 30.78125 | H13: 0.6490107369 | I13: 31.015625 | J13: -0.1108283283 | K13: 31.25
F14: 8 | G14: =IF(H13*J13<0,G13,I13) -> 30.78125 | H14: 0.6490107369 | I14: =(G14+K14)/2 -> 30.8984375 | J14: 0.2676516852 | K14: =IF(J13*H13<0,I13,K13) -> 31.015625
F15: 9 | G15: 30.8984375 | H15: 0.2676516852 | I15: 30.95703125 | J15: 0.07805384022 | K15: 31.015625
F16: 10 | G16: =IF(H15*J15<0,G15,I15) -> 30.95703125 | H16: 0.07805384022 | I16: =(G16+K16)/2 -> 30.98632812 | J16: -0.01647645009 | K16: =IF(J15*H15<0,I15,K15) -> 31.015625
F17: 11 | G17: =IF(H16*J16<0,G16,I16) -> 30.95703125 | H17: 0.07805384022 | I17: =(G17+K17)/2 -> 30.97167969 | J17: 0.03076636194 | K17: =IF(J16*H16<0,I16,K16) -> 30.98632812
F18: 12 | G18: =IF(H17*J17<0,G17,I17) -> 30.97167969 | H18: 0.03076636194 | I18: =(G18+K18)/2 -> 30.97900391 | J18: 0.007139376598 | K18: =IF(J17*H17<0,I17,K17) -> 30.98632812
F19: 13 | G19: =IF(H18*J18<0,G18,I18) -> 30.97900391 | H19: 0.007139376598 | I19: =(G19+K19)/2 -> 30.98266602 | J19: -0.004669931084 | K19: =IF(J18*H18<0,I18,K18) -> 30.98632812
F20: 14 | G20: =IF(H19*J19<0,G19,I19) -> 30.97900391 | H20: 0.007139376598 | I20: =(G20+K20)/2 -> 30.98083496 | J20: 0.001234374111 | K20: =IF(J19*H19<0,I19,K19) -> 30.98266602
F21: 15 | G21: =IF(H20*J20<0,G20,I20) -> 30.98083496 | H21: 0.001234374111 | I21: =(G21+K21)/2 -> 30.98175049 | J21: -0.00171786564 | K21: =IF(J20*H20<0,I20,K20) -> 30.98266602
G23: VExcel | H23: =(G21+K21)/2 -> 30.98175049
G24: VVBA | H24: 30.98
